fUSD/lending_fUSD_20240819
["ID","MTS","AMOUNT","RATE_DAILY","PERIOD"]
[335274939,1724063442504,-946.88,0.00010999,2]
[335274940,1724063442513,-946.88,0.00010999,2]
[335274941,1724063442523,-946.88,0.00010999,2]
[335274942,1724063442532,-946.88,0.00010999,2]
[335274943,1724063442574,-946.88,0.00010999,2]
[335274944,1724063442583,-946.88,0.00010999,2]
[335274945,1724063442593,-946.88,0.00010999,2]
[335274946,1724063442603,-946.88,0.00010999,2]
[335274947,1724063442613,-946.88,0.00010999,2]
[335274948,1724063442623,-946.88,0.00010999,2]
[335274949,1724063442632,-946.88,0.00010999,2]
[335274950,1724063442644,-946.88,0.00010999,2]
[335274951,1724063442654,-946.88,0.00010999,2]
[335274952,1724063442665,-3972.52,0.00010999,2]
[335274953,1724063442675,-946.88,0.00010999,2]
[335274954,1724063442686,-3972.52,0.00010999,2]
[335274955,1724063442696,-947.04768704,0.00010999,2]
[335274956,1724063442705,-3972.52,0.00010999,2]
[335274957,1724063442715,-3972.52,0.00010999,2]
[335274958,1724063442725,-3972.52,0.00010999,2]
[335274959,1724063442734,-3972.52,0.00010999,2]
[335274960,1724063442743,-3972.52,0.00010999,2]
[335274961,1724063442753,-3972.52,0.00010999,2]
[335274962,1724063442763,-3972.52,0.00010999,2]
[335274963,1724063442771,-3972.52,0.00010999,2]
[335274964,1724063442780,-3972.52,0.00010999,2]
[335274965,1724063442790,-3972.52,0.00010999,2]
[335274966,1724063442800,-3972.52,0.00010999,2]
[335274967,1724063442810,-3972.52,0.00010999,2]
[335274968,1724063442820,-3972.52,0.00010999,2]
[335274969,1724063442829,-3972.52,0.00010999,2]
[335274970,1724063442839,-3972.52,0.00010999,2]
[335274971,1724063442850,-3941.68182953,0.00010999,2]
[335274972,1724063442861,-30.83817047,0.00010999,2]
[335274973,1724063442870,-1807.95778796,0.00010999,2]
[335274974,1724063442881,-805.65730469,0.00010999,2]
[335275002,1724063443921,-1006.62630079,0.00010999,2]
[335275004,1724063443933,-352.50677257,0.00010999,2]
[335275006,1724063443942,-0.22122385,0.00010999,2]
[335275008,1724063443953,-1401.9999998,0.00010999,2]
[335275011,1724063443965,-1496.0,0.00010999,2]
[335275014,1724063443977,-557.84664193,0.00010999,2]
[335275017,1724063443988,-660.19,0.00010999,2]
[335275020,1724063443999,-2204.45423647,0.00010999,2]
[335275022,1724063444010,-2815.26216506,0.00010999,2]
[335275024,1724063444021,-1175.26064,0.00010999,2]
[335275026,1724063444033,-875.85524068,0.00010999,2]
[335275028,1724063444044,-513.18500005,0.00010999,2]
[335275033,1724063444086,-6183.93485216,0.00010999,2]
[335275035,1724063444095,-9659.69694077,0.00010999,2]
[335275037,1724063444106,-602.56499997,0.00010999,2]
[335275039,1724063444118,-701.666667,0.00010999,2]
[335275101,1724063446628,-2907.45,0.00010999,2]
[335275298,1724063675493,156.18,8.219e-05,2]
[335275299,1724063680883,190.9,9.85e-05,2]
[335275304,1724063758571,6925.26146073,9.899e-05,2]
[335275305,1724064135619,190.9,9.875e-05,2]
[335275306,1724064207847,156.18,8.219e-05,2]
[335275307,1724064296725,9490.8,9.879e-05,2]
[335275308,1724064338099,537.6,9.857e-05,2]
[335275312,1724064386034,1249.29,9.814e-05,2]
[335275322,1724064517398,1276.0146638,9.899e-05,2]
[335275330,1724064596913,230.74,9.836e-05,2]
[335275334,1724064631427,-462.4,9.919e-05,2]
[335275335,1724064631436,-150.0,9.973e-05,2]
[335275336,1724064631446,-150.0,9.999e-05,2]
[335275337,1724064631455,-292.4607206,9.999e-05,2]
[335275338,1724064631466,-7.5392794,9.999e-05,2]
[335275339,1724064631475,-161.88951676,0.0001,7]
[335275340,1724064631485,-500.0,0.0001,2]
[335275341,1724064631494,-500.0,0.0001,2]
[335275342,1724064631504,-500.0,0.0001,2]
[335275343,1724064631513,-500.0,0.0001,2]
[335275344,1724064631522,-500.0,0.0001,2]
[335275345,1724064631531,-500.0,0.0001,2]
[335275346,1724064631540,-61.25751942,0.0001,2]
[335275347,1724064631552,-438.74248058,0.0001,2]
[335275348,1724064631561,-500.0,0.0001,2]
[335275349,1724064631571,-500.0,0.0001,2]
[335275350,1724064631580,-500.0,0.0001,2]
[335275351,1724064631589,-500.0,0.0001,2]
[335275352,1724064631598,-500.0,0.0001,2]
[335275353,1724064631607,-522.16,0.0001,2]
[335275354,1724064631616,-1050.0,0.0001,2]
[335275355,1724064631625,-92.13747441,0.0001,2]
[335275356,1724064631636,-407.86252559,0.0001,2]
[335275357,1724064631645,-24.13747841,0.0001,2]
[335275358,1724064631656,-250.0,0.0001,2]
[335275359,1724064631668,-225.86252159,0.0001,2]
[335275360,1724064631677,-336.63710981,0.0001,2]
[335275361,1724064631689,-163.36289019,0.0001,2]
[335275362,1724064631699,-308.78033483,0.0001,2]
[335275363,1724064631710,-191.21966517,0.0001,2]
[335275364,1724064631719,-500.0,0.0001,2]
[335275365,1724064631728,-250.62204842,0.0001,2]
[335275366,1724064631744,-249.37795158,0.0001,2]
[335275367,1724064631753,-500.0,0.0001,2]
[335275368,1724064631763,-96.7089929,0.0001,2]
[335275369,1724064631774,-403.2910071,0.0001,2]
[335275370,1724064631784,-104.81935357,0.0001,2]
[335275371,1724064631796,-395.18064643,0.0001,2]
[335275372,1724064631807,-500.0,0.0001,2]
[335275373,1724064631818,-500.0,0.0001,2]
[335275374,1724064631829,-180.62,0.0001,2]
[335275375,1724064631839,-500.0,0.0001,2]
[335275376,1724064631849,-316.9035925,0.00010009,2]
[335275377,1724064631858,-200.0,0.0001037,2]
[335275378,1724064631867,-200.0,0.0001044,2]
[335275379,1724064631877,-200.0,0.0001051,2]
[335275380,1724064631887,-2656.57903298,0.0001051,2]
[335275381,1724064631898,-2794.49096702,0.0001051,2]
[335275382,1724064631908,-200.0,0.0001058,2]
[335275383,1724064631917,-200.0,0.0001065,2]
[335275384,1724064631927,-150.92,0.000107,2]
[335275385,1724064631936,-200.0,0.0001072,2]
[335275386,1724064631945,-156.18,0.00010734,2]
[335275387,1724064631955,-200.0,0.0001079,2]
[335275388,1724064631964,-2957.96409646,0.00010799,2]
[335275389,1724064631975,-15207.38845316,0.00010799,2]
[335275390,1724064631987,-389.84087267,0.00010799,2]
[335275391,1724064631998,-1797.61002149,0.00010799,2]
[335275392,1724064632009,-3434.7094964,0.00010799,2]
[335275393,1724064632020,-2000.0,0.00010799,2]
[335275394,1724064632031,-1601.38575,0.00010799,2]
[335275395,1724064632043,-364.428096,0.00010799,2]
[335275396,1724064632066,-3422.04110642,0.00010799,2]
[335275397,1724064632077,-2665.22867663,0.00010799,2]
[335275398,1724064632088,-3255.09037,0.00010799,2]
[335275399,1724064632100,-401.44091038,0.00010799,2]
[335275400,1724064632112,-450.037073,0.00010799,2]
[335275401,1724064632124,-3150.20515077,0.00010799,2]
[335275402,1724064632135,-574.74332662,0.00010799,2]
[335275403,1724064632145,-4407.7449,0.00010799,2]
[335275404,1724064632155,-770.1724145,0.00010849,2]
[335275405,1724064632164,-770.1724145,0.00010851,2]
[335275406,1724064632174,-770.1724145,0.00010857,2]
[335275407,1724064632183,-770.1724145,0.00010858,2]
[335275408,1724064632193,-200.0,0.0001086,2]
[335275409,1724064632202,-531.18278664,0.00010861,2]
[335275410,1724064632211,-156.27131137,0.00010862,2]
[335275411,1724064632220,-155.0,0.00010862,2]
[335275412,1724064632229,-644.78286886,0.00010863,2]
[335275413,1724064632241,-125.38954564,0.00010863,2]
[335275414,1724064632250,-770.1724145,0.00010875,2]
[335275415,1724064632260,-770.1724145,0.00010877,2]
[335275416,1724064632269,-498.01678123,0.00010878,2]
[335275417,1724064632280,-272.15563327,0.00010878,2]
[335275418,1724064632289,-155.0,0.00010888,2]
[335275419,1724064632299,-922.56561787,0.0001089,2]
[335275420,1724064632313,-382.31751455,0.0001089,2]
[335275421,1724064632325,-19.04364758,0.0001089,2]
[335275422,1724064632334,-155.0,0.0001089,2]
[335275423,1724064632343,-116.11971601,0.00010895,2]
[335275424,1724064632359,-191.81648399,0.00010895,2]
[335275425,1724064632368,-1248.22607832,0.00010899,2]
[335275426,1724064632379,-10267.24643384,0.00010899,2]
[335275427,1724064632389,-1765.28636849,0.00010899,2]
[335275428,1724064632398,-13280.75888062,0.00010899,2]
[335275429,1724064632407,-565.58275152,0.00010899,2]
[335275430,1724064632418,-445.4363987,0.00010899,2]
[335275431,1724064632433,-4866.61354802,0.00010899,2]
[335275432,1724064632443,-889.15149544,0.00010899,2]
[335275447,1724064637536,-2709.20962988,0.00010899,2]
[335275449,1724064637547,-1662.12038026,0.00010899,2]
[335275450,1724064637570,-496.0,0.00010899,2]
[335275451,1724064637606,-930.51620209,0.00010899,2]
[335275452,1724064637618,-716.12847471,0.00010899,2]
[335275453,1724064637628,-5092.20142515,0.00010899,2]
[335275454,1724064637640,-408.0085986,0.00010899,2]
[335275455,1724064637654,-1076.7,0.00010899,2]
[335275456,1724064637666,-1154.54016205,0.00010899,2]
[335275457,1724064637678,-1282.32704008,0.00010899,2]
[335275458,1724064637689,-2500.0,0.00010899,2]
[335275459,1724064637701,-1766.98165474,0.00010899,2]
[335275460,1724064637711,-13280.75888062,0.00010899,2]
[335275461,1724064637722,-13280.75888062,0.00010899,2]
[335275462,1724064637733,-5727.0185726,0.00010899,2]
[335275463,1724064637750,-577.7598118,0.00010899,2]
[335275464,1724064637762,-716.53939924,0.00010899,2]
[335275465,1724064637774,-1040.06399297,0.00010899,2]
[335275466,1724064637786,-301.11415239,0.00010899,2]
[335275467,1724064637798,-1249.1832568,0.00010899,2]
[335275532,1724064639587,-499.9996419,0.00010899,2]
[335275533,1724064639734,-3169.08005292,0.00010899,2]
[335275534,1724064639748,-3906.48844358,0.00010899,2]
[335275535,1724064639759,-291.14,0.00010899,2]
[335275536,1724064639815,-861.50000005,0.00010899,2]
[335275537,1724064639827,-422.95610072,0.00010899,2]
[335275538,1724064639838,-500.0,0.00010899,2]
[335275539,1724064639852,-7298.67433627,0.00010899,2]
[335275540,1724064639862,-1518.60670966,0.00010899,2]
[335275541,1724064639873,-1374.95943828,0.00010899,2]
[335275614,1724064643614,-10387.19273268,0.00010899,2]
[335275616,1724064643623,-305.29582077,0.00010899,2]
[335275618,1724064643632,-320.51144655,0.000109,2]
[335275621,1724064643644,-351.60001831,0.000109,2]
[335275623,1724064643654,-2335.57778295,0.000109,2]
[335275625,1724064643665,-438.5695808,0.000109,2]
[335275627,1724064643676,-996.40993716,0.000109,2]
[335275821,1724064645676,-590.52859533,0.000109,2]
[335275827,1724064645729,-8247.56151952,0.000109,2]
[335275829,1724064645743,-200.0,0.0001093,2]
[335275831,1724064645754,-564.03,0.00010959,2]
[335275833,1724064645763,-500.0,0.00010959,2]
[335275835,1724064645773,-171.23816144,0.00010959,2]
[335275837,1724064645783,-613.73223605,0.00010959,2]
[335275839,1724064645792,-372.83049997,0.00010959,2]
[335275841,1724064645801,-394.69158302,0.00010959,2]
[335275844,1724064645813,-105.30841698,0.00010959,2]
[335275845,1724064645824,-500.0,0.00010959,2]
[335275847,1724064645833,-500.0,0.00010959,2]
[335275849,1724064645843,-500.0,0.00010959,2]
[335275851,1724064645851,-4214.42347369,0.00010959,2]
[335280502,1724064696549,156.18,8.524e-05,2]
[335282888,1724065172873,156.18,8.219e-05,2]
[335282889,1724065529335,185.00937477,9.899e-05,2]
[335282900,1724065632178,156.18,8.219e-05,2]
[335282914,1724065771234,-764.49546069,9.943e-05,2]
[335282920,1724065831886,-491.20938587,9.941e-05,2]
[335282922,1724065837909,-784.80527793,9.941e-05,2]
[335282923,1724065837920,-213.30600429,9.943e-05,2]
[335282926,1724065839823,-1343.2610154,9.943e-05,2]
[335282927,1724065839833,-156.3474976,9.988e-05,2]
[335282928,1724065839842,-299.57007155,0.00010026,2]
[335282929,1724065839851,-173.81,0.00010098,2]
[335282930,1724065839860,-0.95475468,0.00010151,2]
[335282931,1724065839989,-268.33917414,0.00010151,2]
[335282932,1724065840000,-645.32768726,0.00010151,2]
[335282954,1724066058192,10143.0471,9.9e-05,2]
[335282955,1724066112910,200.2357175,9.85e-05,2]
[335282956,1724066114576,157.15,8.219e-05,2]
[335282957,1724066131615,7195.2618,9.899e-05,2]
[335282958,1724066164624,412.21466658,9.899e-05,2]
[335282959,1724066169906,291.80613083,9.899e-05,2]
[335282960,1724066182589,286.03949974,9.899e-05,2]
[335282961,1724066186213,153.9,7.891e-05,2]
[335282962,1724066188557,949.10799861,9.839e-05,2]
[335282963,1724066194313,159.17209683,9.899e-05,2]
[335282964,1724066199199,504.40711305,9.565e-05,2]
[335282965,1724066224366,159.17209683,9.899e-05,2]
[335282966,1724066226648,217.52,9.862e-05,2]
[335282967,1724066228429,292.19144793,9.565e-05,2]
[335282968,1724066263695,1000.0,9.86e-05,2]
[335282969,1724066284796,2424.7847,9.9e-05,2]
[335282970,1724066288711,697.83,9.84e-05,2]
[335282971,1724066300860,10925.56669,9.888e-05,2]
[335282972,1724066332884,171.08,9.85e-05,2]
[335282973,1724066350577,267.44,9.867e-05,2]
[335282974,1724066352153,2500.0,9.9e-05,2]
[335282975,1724066356031,1156.16,9.867e-05,2]
[335282976,1724066402336,150.0,9.9e-05,2]
[335282977,1724066402526,150.0,9.9e-05,2]
[335282978,1724066402712,150.0,9.9e-05,2]
[335282979,1724066402906,150.0,9.9e-05,2]
[335282980,1724066403090,150.0,9.9e-05,2]
[335282981,1724066403286,150.0,9.9e-05,2]
[335282982,1724066403467,150.0,9.9e-05,2]
[335282983,1724066403797,150.0,9.9e-05,2]
[335282984,1724066403858,150.0,9.9e-05,2]
[335282985,1724066456546,1263.0163,9.9e-05,2]
[335282986,1724066492895,23900.0,9.85e-05,2]
[335282987,1724066493078,1000.0,9.9e-05,2]
[335282988,1724066528836,250.0,9.85e-05,2]
[335282989,1724066543044,427.0681457,8.951e-05,2]
[335282990,1724066559723,236.81,9.825e-05,2]
[335282991,1724066564315,258.62,9.85e-05,2]
[335282992,1724066579011,181.65,8.219e-05,2]
[335282993,1724066594586,14793.6,9.9e-05,2]
[335282994,1724066602559,184.59,9.801e-05,2]
[335282995,1724066617260,797.91,9.85e-05,2]
[335282996,1724066706660,217.52,9.792e-05,2]
[335282997,1724066729427,200.0,9.777e-05,2]
[335283021,1724066776314,1298.83,9.841e-05,2]
[335283022,1724066812510,153.9,7.88e-05,2]
[335283026,1724066880729,3043.37587302,9.551e-05,2]
[335283027,1724066908561,500.0,9.774e-05,2]
[335283039,1724066960609,155.0,9.899e-05,2]
[335283041,1724066988700,9702.74,9.757e-05,2]
[335283042,1724066998848,250.0,9.757e-05,2]
[335283043,1724067009479,-17438.0,0.00010995,10]
[335283054,1724067031824,-155.0,9.943e-05,2]
[335283055,1724067031836,-155.0,9.943e-05,2]
[335283056,1724067031846,-1306.44389609,9.99e-05,2]
[335283057,1724067031855,-607.62977577,9.99e-05,2]
[335283058,1724067031864,-607.62977577,9.995e-05,2]
[335283059,1724067031874,-607.62977577,9.999e-05,2]
[335283060,1724067031883,-150.0,9.999e-05,2]
[335283061,1724067031892,-235538.0,0.0001,2]
[335283062,1724067031901,-1050.0,0.0001,2]
[335283063,1724067031911,-1156.77877725,0.0001,2]
[335283064,1724067031920,-1103.27232,0.0001007,2]
[335283065,1724067031930,-316.9637025,0.00010097,2]
[335283066,1724067031939,-8744.69390815,0.00010097,2]
[335283067,1724067031948,-11502.0,0.000101,3]
[335283068,1724067031958,-11502.0,0.000102,5]
[335283069,1724067031968,-531.39,0.000102,2]
[335283070,1724067031977,-233.16,0.000102,2]
[335283071,1724067031987,-150.0,0.000102,2]
[335283072,1724067031997,-531.39,0.000102,2]
[335283073,1724067032006,-150.0,0.000102,2]
[335283074,1724067032016,-381.0,0.000102,2]
[335283075,1724067032025,-150.0,0.000102,2]
[335283076,1724067032035,-1103.27232,0.0001021,2]
[335283077,1724067032045,-185.2,0.00010264,2]
[335283078,1724067032054,-531.39,0.00010278,2]
[335283079,1724067032064,-426.72,0.00010278,2]
[335283080,1724067032074,-340.4,0.00010278,2]
[335283081,1724067032085,-150.0,0.00010278,2]
[335283082,1724067032095,-173.97,0.00010342,2]
[335283083,1724067032104,-1103.27232,0.0001036,2]
[335283084,1724067032113,-499.99,0.00010425,2]
[335283085,1724067032123,-286.22,0.0001045,2]
[335283086,1724067032132,-410.016937,0.00010456,2]
[335283087,1724067032142,-181.65,0.00010468,2]
[335283088,1724067032151,-1362.44,0.00010505,2]
[335283089,1724067032161,-306.9434504,0.00010505,2]
[335283090,1724067032170,-155.12345028,0.00010505,2]
[335283091,1724067032179,-2343.32801118,0.00010505,2]
[335283092,1724067032189,-155.00000007,0.00010505,2]
[335283093,1724067032198,-1103.27233,0.0001052,2]
[335283094,1724067032208,-211.16220297,0.00010566,2]
[335283095,1724067032218,-531.39,0.00010578,2]
[335283097,1724067032227,-712.54,0.00010578,2]
[335283099,1724067032236,-426.72,0.00010578,2]
[335283101,1724067032246,-150.0,0.00010578,2]
[335283103,1724067032255,-379.60202779,0.00010657,2]
[335283105,1724067032265,-1103.27232,0.0001068,2]
[335283106,1724067032274,-500.0,0.00010684,2]
[335283108,1724067032283,-500.0,0.00010684,2]
[335283110,1724067032293,-500.0,0.00010684,2]
[335283113,1724067032302,-19139.189828,0.00010684,2]
[335283116,1724067032312,-500.0,0.00010684,2]
[335283119,1724067032321,-500.0,0.00010684,2]
[335283122,1724067032332,-500.0,0.00010684,2]
[335283126,1724067032342,-500.0,0.00010684,2]
[335283128,1724067032352,-12659.58,0.00010684,2]
[335283130,1724067032362,-1250.0,0.00010684,2]
[335283133,1724067032371,-1428.87,0.00010684,2]
[335283136,1724067032381,-2739.27,0.00010684,2]
[335283138,1724067032390,-3478.27,0.00010684,2]
[335283140,1724067032399,-1659.63,0.00010684,2]
[335283142,1724067032409,-500.0,0.00010684,2]
[335283144,1724067032418,-600.0,0.00010684,2]
[335283146,1724067032428,-500.0,0.00010684,2]
[335283147,1724067032436,-2909.85,0.00010684,2]
[335283149,1724067032446,-500.0,0.00010684,2]
[335283151,1724067032455,-301.17318112,0.00010684,2]
[335283153,1724067032465,-1047.85,0.00010684,2]
[335283155,1724067032475,-500.0,0.00010684,2]
[335283157,1724067032488,-203.576718,0.00010684,2]
[335283159,1724067032498,-520.87,0.00010684,2]
[335283161,1724067032508,-179.4623719,0.00010699,2]
[335283163,1724067032519,-293.79422022,0.00010699,2]
[335283165,1724067032528,-249.22865514,0.00010713,2]
[335283167,1724067032538,-150.0,0.00010729,2]
[335283168,1724067032548,-150.0,0.00010732,2]
[335283169,1724067032559,-1500.0,0.00010766,2]
[335283170,1724067032569,-150.0,0.00010771,2]
[335283171,1724067032579,-150.0,0.00010782,2]
[335283172,1724067032588,-150.0,0.00010789,2]
[335283173,1724067032598,-272.6122,0.00010799,2]
[335283174,1724067032607,-327.27627059,0.00010799,2]
[335283175,1724067032616,-12316.28111925,0.000108,2]
[335283176,1724067032626,-1500.0,0.0001083,2]
[335283177,1724067032635,-1103.27232,0.0001083,2]
[335283178,1724067032645,-2266.97091266,0.00010837,2]
[335283179,1724067032655,-2266.97091266,0.00010841,2]
[335283180,1724067032665,-2266.97091266,0.0001085,2]
[335283181,1724067032674,-379.60202779,0.0001085,2]
[335283182,1724067032684,-150.0,0.00010852,2]
[335283183,1724067032694,-2266.97091266,0.0001086,2]
[335283184,1724067032703,-244.0,0.0001086,2]
[335283185,1724067032713,-531.49545144,0.00010861,2]
[335283186,1724067032723,-2266.97091266,0.00010862,2]
[335283187,1724067032732,-2266.97091266,0.00010867,2]
[335283188,1724067032742,-2266.97091266,0.00010871,2]
[335283189,1724067032752,-150.0,0.00010876,2]
[335283190,1724067032761,-2266.97091266,0.00010877,2]
[335283191,1724067032771,-391.6,0.00010889,2]
[335283192,1724067032780,-150.82,0.00010889,2]
[335283193,1724067032790,-150.82,0.00010889,2]
[335283194,1724067032799,-257.7700176,0.00010894,2]
[335283195,1724067032809,-764.0,0.00010894,2]
[335283196,1724067032819,-257.77001758,0.00010895,2]
[335283197,1724067032829,-706.5476,0.00010895,2]
[335283198,1724067032838,-257.77001758,0.00010896,2]
[335283199,1724067032847,-257.77001758,0.00010897,2]
[335283200,1724067032856,-410.016937,0.00010897,2]
[335283201,1724067032866,-156.13562367,0.00010897,2]
[335283202,1724067032875,-183.97398844,0.00010898,2]
[335283203,1724067032885,-257.77001758,0.00010898,2]
[335283204,1724067032895,-500.0,0.00010898,2]
[335283205,1724067032904,-500.0,0.00010898,2]
[335283206,1724067032914,-500.0,0.00010898,2]
[335283207,1724067032923,-500.0,0.00010898,2]
[335283208,1724067033114,-1047.85,0.00010898,2]
[335283209,1724067033124,-520.87,0.00010898,2]
[335283210,1724067033134,-32364.2297,0.00010899,2]
[335283211,1724067033144,-151.0,0.00010899,2]
[335283212,1724067033154,-151.0,0.00010899,2]
[335283213,1724067033164,-151.0,0.00010899,2]
[335283214,1724067033174,-151.0,0.00010899,2]
[335283215,1724067033185,-151.0,0.00010899,2]
[335283216,1724067033195,-151.0,0.00010899,2]
[335283217,1724067033205,-151.0,0.00010899,2]
[335283218,1724067033215,-151.0,0.00010899,2]
[335283219,1724067033225,-151.0,0.00010899,2]
[335283220,1724067033235,-151.0,0.00010899,2]
[335283221,1724067033245,-197.36312,0.00010899,2]
[335283222,1724067033255,-257.77001758,0.00010899,2]
[335283223,1724067033264,-151.0,0.00010899,2]
[335283224,1724067033274,-151.0,0.00010899,2]
[335283225,1724067033284,-151.0,0.00010899,2]
[335283226,1724067033293,-1426.98752145,0.00010899,2]
[335283227,1724067033303,-25182.40565289,0.00010899,2]
[335283228,1724067033312,-1498.18080527,0.00010899,2]
[335283229,1724067033322,-25182.40565289,0.00010899,2]
[335283230,1724067033333,-25182.40565289,0.00010899,2]
[335283231,1724067033342,-25182.40565289,0.00010899,2]
[335283232,1724067033352,-151.98228612,0.00010899,2]
[335283233,1724067033361,-9208.35868206,0.00010899,2]
[335283234,1724067033522,-1293.64252824,0.00010899,2]
[335283235,1724067033545,-500.0,0.00010684,2]
[335283236,1724067033555,-153.26372546,0.00010899,2]
[335283237,1724067033568,-4289.95371302,0.00010899,2]
[335283238,1724067033580,-803.1080001,0.00010899,2]
[335283239,1724067033591,-337.01913656,0.00010899,2]
[335283240,1724067033603,-3749.97599785,0.00010899,2]
[335283241,1724067033617,-5347.0838696,0.00010899,2]
[335283242,1724067033626,-25182.40565289,0.00010899,2]
[335283243,1724067033636,-20397.13620088,0.00010899,2]
[335283244,1724067037877,-308.61789223,0.00010898,2]
[335283245,1724067037888,-191.38210777,0.00010898,2]
[335283246,1724067037898,-468.3692124,0.00010899,2]
[335283247,1724067037965,-4316.90023961,0.00010899,2]
[335283248,1724067037975,-18273.95072806,0.00010899,2]
[335283249,1724067038083,-6908.45492483,0.00010899,2]
[335283250,1724067038096,-380.78552008,0.00010899,2]
[335283251,1724067038106,-1033.99355509,0.00010899,2]
[335283252,1724067038117,-2583.2649599,0.00010899,2]
[335283253,1724067038128,-328.29846105,0.00010899,2]
[335283254,1724067038144,-1277.18945109,0.00010899,2]
[335283255,1724067038155,-3962.55749776,0.00010899,2]
[335283256,1724067038166,-2497.15239399,0.00010899,2]
[335283286,1724067040011,-500.0,0.00010684,2]
[335283287,1724067040020,-500.0,0.00010898,2]
[335283288,1724067040029,-13499.94933401,0.00010899,2]
[335283289,1724067040039,-1498.18080527,0.000109,2]
[335283290,1724067040048,-151.98228611,0.000109,2]
[335283291,1724067040058,-127.53691638,0.000109,2]
[335283292,1724067040069,-253.24860369,0.000109,2]
[335283293,1724067040078,-793.34006,0.000109,2]
[335283294,1724067040159,-616.89321857,0.000109,2]
[335283295,1724067040170,-121.95477826,0.000109,2]
[335283296,1724067040179,-1532.18805679,0.000109,2]
[335283297,1724067040188,-1532.18805679,0.000109,2]
[335283298,1724067040197,-1532.18805679,0.000109,2]
[335283299,1724067040206,-1532.18805679,0.000109,2]
[335283300,1724067040215,-1532.18805679,0.000109,2]
[335283301,1724067040223,-1532.18805679,0.000109,2]
[335283302,1724067040233,-1532.18805679,0.000109,2]
[335283303,1724067040242,-257.77001758,0.000109,2]
[335283304,1724067040250,-151.0,0.000109,2]
[335283305,1724067040259,-1426.98752144,0.000109,2]
[335283306,1724067040269,-1498.18080527,0.000109,2]
[335283307,1724067040278,-151.98228611,0.000109,2]
[335283308,1724067040288,-380.78552007,0.000109,2]
[335283309,1724067040297,-25182.40565289,0.000109,2]
[335283310,1724067040307,-150.0,0.00010925,2]
[335283311,1724067040316,-244.0,0.0001093,2]
[335283312,1724067040325,-150.82,0.00010949,2]
[335283313,1724067040335,-500.0,0.00010958,2]
[335283314,1724067040345,-500.0,0.00010958,2]
[335283315,1724067040354,-531.1243407,0.00010958,2]
[335283316,1724067040363,-500.0,0.00010958,2]
[335283317,1724067040372,-465.98422402,0.00010958,2]
[335283318,1724067040381,-500.0,0.00010958,2]
[335283319,1724067040390,-500.0,0.00010958,2]
[335283320,1724067040399,-500.0,0.00010958,2]
[335283321,1724067040409,-500.0,0.00010958,2]
[335283322,1724067040419,-500.0,0.00010958,2]
[335283323,1724067040427,-545.8815883,0.00010958,2]
[335283324,1724067040437,-500.0,0.00010958,2]
[335283325,1724067040446,-211.93569369,0.00010958,2]
[335283326,1724067040456,-500.0,0.00010958,2]
[335283327,1724067040465,-500.0,0.00010958,2]
[335283328,1724067040474,-500.0,0.00010958,2]
[335283329,1724067040488,-500.0,0.00010958,2]
[335283330,1724067040497,-196.74674897,0.00010958,2]
[335283331,1724067040506,-500.0,0.00010958,2]
[335283332,1724067040515,-857.37,0.00010959,2]
[335283333,1724067040524,-535.82,0.00010959,2]
[335283334,1724067040534,-180.14,0.00010959,2]
[335283335,1724067040543,-1000.0,0.00010959,2]
[335283336,1724067040552,-5173.49,0.00010959,2]
[335283337,1724067040564,-3280.42,0.00010959,2]
[335283338,1724067040573,-2000.0,0.00010959,2]
[335283339,1724067040583,-801.33,0.00010959,2]
[335283340,1724067040592,-1500.0,0.00010959,2]
[335283341,1724067040602,-150.0,0.00010959,2]